Cogmind - Beta 14 @@@ ROGUE MODE // 2025.03.22 @ 16:02:55 Player: Leha44581 Result: Destroyed by G-34 Mercenary with Small Laser Performance ------------- Evolutions (0) 0 Regions Visited (1) 200 Robots Destroyed (9) 45 Value Destroyed (283) 283 Prototype IDs (0) 0 Alien Tech Used (0) 0 Bonus (0) 0 TOTAL SCORE: 528 Bonus ------- None Cogmind --------- Core Integrity 0/250 Matter 189/300 Energy 100/100 System Corruption 0% Temperature Cool (6) Movement Core (350) Ox6 Location -10/Materials Parts ------- > --- POWER (1) -------- (None) > --- PROPULSION (2) --- (None) > --- UTILITY (2) ------ Large Storage Unit > --- WEAPON (2) ------- (None) > --- INVENTORY (15) --- Light Ion Engine Aluminum Leg Compact Wheel Medium Storage Unit Terrain Scanner ECM Suite ECM Suite Core Shielding Peak State ------------ > --- POWER ------------ Light Ion Engine > --- PROPULSION ------- Wheel Wheel > --- UTILITY ---------- Medium Storage Unit Terrain Scanner > --- WEAPON ----------- Assault Rifle Grenade Launcher > --- INVENTORY -------- Ion Engine Aluminum Leg Compact Wheel Medium Storage Unit Terrain Scanner ECM Suite Core Shielding Weapon Shielding Beam Cannon Welding Torch [Rating: 8] Favorites ----------- Power Light Ion Engine Engine Light Ion Engine Propulsion Wheel Wheel Wheel Utility Medium Storage Unit Device Terrain Scanner Storage Medium Storage Unit Protection Weapon Shielding Weapon Assault Rifle Energy Cannon Beam Cannon Ballistic Gun Assault Rifle Launcher Grenade Launcher Special Weapon Welding Torch Build | -11 -10 ------- Run | Yrd Mat Slots Evolved . | . . Power . | . . Propulsion . | . . Utility . | . . Weapon . | . . Parts Attached 14 | 4 10 Power 2 | 1 1 Engine 2 | 1 1 Core . | . . Reactor . | . . Propulsion 4 | 2 2 Treads . | . . Leg . | . . Wheel 4 | 2 2 Hover . | . . Flight . | . . Utility 4 | . 4 Device 1 | . 1 Storage 2 | . 2 Processor . | . . Hackware . | . . Protection 1 | . 1 Artifact . | . . Weapon 4 | 1 3 Energy Gun . | . . Energy Cannon 1 | . 1 Ballistic Gun 1 | 1 . Ballistic Cannon . | . . Launcher 1 | . 1 Special Weapon 1 | . 1 Impact Weapon . | . . Slashing Weapon . | . . Piercing Weapon . | . . Special Melee Weapon . | . . Unidentified Prototypes . | . . Parts Lost 10 | . 10 Power 1 | . 1 Propulsion 3 | . 3 Utility 2 | . 2 Weapon 4 | . 4 Highest Loss Streak 7 | . 7 To Critical Strikes . | . . Average Slot Usage (%) 74 | . 74 Engine 10 | . 10 Wheel 24 | . 24 Device 4 | . 4 Storage 13 | . 13 Protection 2 | . 2 Energy Cannon 3 | . 3 Ballistic Gun 9 | . 9 Launcher 4 | . 4 Peak Build Rating 8 | 4 8 Average Rating 5 | 3 5 On Entrance 2 | . 4 Naked Turns . | . . Heaviest Build 31 | 5 31 Greatest Support 20 | 20 20 Greatest Overweight (x) 2 | . 2 Average Overweight (x) . | . . Largest Inventory Capacity 15 | 5 15 Average Capacity 10 | 5 11 Most Carried 12 | 2 12 Average Carried 7 | . 8 Final Capacity 15 | 5 15 Final Carried 8 | 2 8 Class Distribution -------------------- 100% | Mutant Dominant Class ---------------- Mutant | -10/Materials Resources | -11 -10 ----------- Run | Yrd Mat Matter Collected 302 | 261 41 Remotely . | . . Salvage Created 332 | 46 286 Parts 11 | 3 8 Haulers Intercepted . | . . Recyclers Shooed . | . . Parts Field Recycled . | . . Retrieved Matter . | . . Parts Self-Destructed . | . . Prevented . | . . Kills | -11 -10 ------- Run | Yrd Mat Combat Hostiles Destroyed 7 | 1 6 Guns 1 | 1 . Cannons 2 | . 2 AOE 4 | . 4 Classes Destroyed 3 | 1 2 Recycler 1 | . 1 Watcher 1 | . 1 Grunt 7 | 1 6 Best Kill Streak 4 | 1 4 Combat Bots Only 4 | 1 4 Max Kills in Single Turn 1 | 1 1 Gunslinging . | . . Exploded 1 | . 1 Melee . | . . Uniques/NPCs Destroyed . | . . Combat | -11 -10 -------- Run | Yrd Mat Hostile Shots Fired 98 | 7 91 Missed 26 | 2 24 Damage Taken 869 | 58 811 Core 259 | 12 247 Absorbed by Shields . | . . Redirected to Shielding 51 | . 51 Core Remaining (%) 95 | 95 . Volleys Fired 35 | 7 28 Largest 2 | 1 2 Hottest 80 | 20 80 Shots Fired 46 | 7 39 Gun 20 | 7 13 Cannon 18 | . 18 Launcher 7 | . 7 Special 1 | . 1 Kinetic 20 | 7 13 Thermal 19 | . 19 Explosive 7 | . 7 Electromagnetic . | . . Robot Hit Streak 6 | 5 6 Robot Miss Streak 3 | 1 3 Penetration Max . | . . Secondary Targets . | . . Shots Hit Robots 28 | 6 22 Core Hits 14 | 2 12 Critical Kills . | . . Critical Parts Destroyed . | . . Critical Strikes . | . . Melee Attacks . | . . Impact . | . . Slashing . | . . Piercing . | . . Sneak Attacks . | . . Combat Hostiles . | . . Follow-up Attacks . | . . Damage Inflicted 673 | 78 595 Guns 199 | 78 121 Cannons 210 | . 210 Explosions 239 | . 239 Melee . | . . Ramming 25 | . 25 Kinetic 199 | 78 121 Thermal 210 | . 210 Explosive 239 | . 239 Electromagnetic . | . . Impact . | . . Slashing . | . . Piercing . | . . Highest Corruption . | . . Average Corruption . | . . Corruption Purged . | . . Corruption Blocked . | . . Overload Shots . | . . Overflow Damage . | . . Projectiles . | . . Explosions . | . . Melee . | . . Knockbacks . | . . Impact . | . . Kinetic . | . . Secondary . | . . Self-Inflicted Damage 62 | . 62 Shots 2 | . 2 Rammed 8 | . 8 Targets Rammed 8 | . 8 Kicked . | . . Crushed . | . . Highest Temperature 397 | . 397 Average Temperature 153 | . 153 Received Heat Transfer 438 | 30 408 Effects 4 | . 4 Shutdowns 1 | . 1 Energy Bleed 1 | . 1 Interference 1 | . 1 Matter Decay 1 | . 1 Siege Activations . | . . Robots Corrupted . | . . Combat Hostiles . | . . Parts Fried . | . . Impact Corruptions . | . . Robots Melted . | . . Combat Hostiles . | . . Parts Melted 1 | . 1 Heat Transferred 444 | . 444 Parts Sabotaged . | . . Parts Stolen . | . . Parts Stripped . | . . Power Chain Reactions . | . . Alert | -11 -10 ------- Run | Yrd Mat Peak Influence 294 | 20 294 Initial 13 | . 13 Average 131 | 2 155 Maximum Alert Level 1 | . 1 Low Security (%) 60 | 100 53 Level 1 39 | . 46 Level 2 . | . . Level 3 . | . . Level 4 . | . . Level 5 . | . . High Security . | . . Max Security . | . . Squads Dispatched 4 | . 4 Investigation 2 | . 2 Extermination . | . . Reinforcement 2 | . 2 Assault . | . . Garrison . | . . Intercept . | . . Searches Triggered . | . . Construction Impeded . | . . Haulers Reinforced . | . . Active Scanning Responses . | . . Cargo Convoy Interrupts . | . . Stealth | -11 -10 --------- Run | Yrd Mat Distress Signals . | . . Communications Jammed . | . . Distress Signals . | . . Times Spotted 20 | 1 19 Peak Tracking Total 5 | 1 5 Tactical Retreats 3 | . 3 Traps | -11 -10 ------- Run | Yrd Mat Traps Triggered 1 | . 1 Indirectly . | . . Trap Hack Attempts . | . . Triggered . | . . Disarmed . | . . Reprogrammed . | . . Reused . | . . Traps Extracted . | . . Installed . | . . Triggered . | . . Machines | -11 -10 ---------- Run | Yrd Mat Machines Disabled 1 | . 1 Max in Single Turn 1 | . 1 Machines Repaired . | . . Machines Dismantled . | . . Machines Sabotaged . | . . Overloaded Fab Kills . | . . Hacking | -11 -10 --------- Run | Yrd Mat Machines Accessed 1 | . 1 Terminals 1 | . 1 Fabricators . | . . Repair Stations . | . . Recycling Units . | . . Scanalyzers . | . . Garrison Access . | . . Total Hacks 3 | . 3 Successful 1 | . 1 Failed 2 | . 2 Catastrophic . | . . Database Lockouts . | . . Manual . | . . Terminals 3 | . 3 Fabricators . | . . Repair Stations . | . . Recycling Units . | . . Scanalyzers . | . . Garrison Access . | . . Terminal Hacks 1 | . 1 Branch Access Points 1 | . 1 Fabricator Hacks . | . . Repair Station Hacks . | . . Recycling Unit Hacks . | . . Scanalyzer . | . . Garrison Access Hacks . | . . Unauthorized Hacks . | . . Terminals . | . . Fabricators . | . . Repair Stations . | . . Recycling Units . | . . Scanalyzers . | . . Garrison Access . | . . Data Cores Recovered . | . . Used . | . . Hacking Detections 1 | . 1 Full Trace Events 1 | . 1 Feedback Events . | . . Feedback Blocked . | . . Robot Schematics Acquired . | . . Robots Built . | . . Authchips . | . . Time . | . . Total Robot Build Rating . | . . Part Schematics Acquired . | . . Parts Built . | . . Authchips . | . . Time . | . . Total Part Build Rating . | . . Parts Repaired . | . . Time . | . . Parts Recycled . | . . Recycled Matter . | . . Retrieved Matter . | . . Retrieved Components . | . . Parts Scanalyzed . | . . Part Schematics Acquired . | . . Parts Damaged . | . . Bothacking | -11 -10 ------------ Run | Yrd Mat Used RIF Installer . | . . Robots Hacked . | . . Non-combat . | . . Combat . | . . Robot Hacks Applied . | . . Relay Couplers Released . | . . Fabnet Peak Effective % . | . . Robots Rewired . | . . Allies Hacked . | . . Hacks Repelled . | . . Allies | -11 -10 -------- Run | Yrd Mat Total Allies . | . . Largest Group . | . . Highest-Rated Group . | . . Highest-Rated Ally . | . . Total Orders . | . . Ally Attacks . | . . Total Damage . | . . Kills . | . . Allies Corrupted . | . . Allies Melted . | . . Intel | -11 -10 ------- Run | Yrd Mat Robot Analysis Total . | . . Derelict Logs Recovered . | . . Drone Launches . | . . Drone Recoveries . | . . Exploration | -11 -10 ------------- Run | Yrd Mat Turns Passed 386 | 61 325 Spaces Moved 310 | 55 255 Core 16 | 16 . Treads . | . . Legs . | . . Wheels 294 | 39 255 Hover . | . . Flight . | . . Fastest Speed 50 | 50 80 Average Speed 82 | 71 85 Slowest Speed 110 | 80 110 Overloaded Moves . | . . Propulsion Burnouts . | . . Robots Hopped . | . . Cave-ins Triggered . | . . Exploration Rate (%) 17 | 6 29 Regions Visited 1 Branch Regions . Pre-discovered Areas . | . . Known Exits Taken . | . . Unknown Exits Taken 1 | 1 . Scrap Searched . | . . Spaces Dug . | . . Terrain Destroyed 55 | . 55 Melee . | . . Projectile . | . . AOE 55 | . 55 Terrain Rammed . | . . Walls Destroyed . | . . Machines Disabled . | . . Actions | -11 -10 --------- Run | Yrd Mat Total 384 | 67 317 Wait . | . . Move 309 | 54 255 Hop . | . . Pick Up 14 | 2 12 Fast Attach 8 | 4 4 Attach 5 | . 5 Detach 1 | . 1 Swap 1 | . 1 Drop 3 | . 3 Fire 35 | 7 28 Melee . | . . Ram 8 | . 8 Kick . | . . Crush . | . . Escape Stasis . | . . Rewire . | . . Trap . | . . Miscellaneous . | . . Route ------- -11/Scrapyard -10/Materials (discovered 1 exit: Min) History --------- Turn | Location | Event 2 | -11/Scrapyard | Met Revision 17 39 | -11/Scrapyard | Discovered new exit (range 8) 62 | -11/Scrapyard | Entered Materials 77 | -10/Materials | Identified exit to Mines 327 | -10/Materials | Build established: Mutant 361 | -10/Materials | Lost 7 parts (1p2n1u3w) 377 | -10/Materials | Core integrity fell below 50% 384 | -10/Materials | Core integrity fell below 20% 387 | -10/Materials | Destroyed by G-34 Mercenary with Small Laser Last Messages --------------- 00293_ R-06 Scavenger collects Visual Processing Unit. 00294_ Power failure, Ion Engine shutdown. 00299_ Heat Sink melted. 00299_ G-34 Mercenary destroyed. 00300_ Overheating: Matter decay (-22). 00303_ Overheating: System interference. 00303_ Beam Cannon temporarily disabled. 00313_ Welding Torch destroyed. 00315_ Slammed into G-34 Mercenary. 00315_ Wheel destroyed. 00317_ Weapon Shielding destroyed. 00319_ Ion Engine destroyed. 00327_ Slammed into U-05 Engineer. 00330_ Beam Cannon destroyed. 00353_ Acquired 28 matter. 00354_ Acquired 2 matter. 00376_ Slammed into G-34 Mercenary. 00379_ Wheel destroyed. 00379_ Slammed into G-34 Mercenary. Map ----- +----------------------------------------------------+ | | | | | ??????????????????????????????????????? | | ???????????????#??????????????????????? | | ??????????????????????????????????????? | | ??????????????????????????????????????? | | ########??########????????????????????? | | # #??# |!!#????????????????????? | | # #??# ! #????????????????????? | | # #??# ! #????????????????????? | | # " #### #??##########????????? | | # """ # # #??# #????????? | | # "" # # #??# #????????? | | # """ + ##+######## #????????? | | # "" # # #????????? | | # """ # # #????????? | | # """ ####### # #????????? | | # """ ####### # #????????? | | # " ## # + #????????? | | # ## # #????????? | | ######### % ##########????????? | | ????????# # "##+######????????????? | | ########## ###### #????????????? | | # # # #### "T" #????????????? | | #""" + ###### #????????????? | | #""" # @ + #????????????? | | #""" # ggg###########??????????? | | # ###### # ????????? | | #""" ### # # """ "????????????? | | #""" #?# #! # """ ?????????????? | | #""" #?#### # """ ?????????????? | | # #??### # # ???????????? | | ##########??# # # #?#####+#??????????? | | ?????#???###### ###??????????????????? | | ?????????# ##???????????????????? | | ?????????# #????????????????????? | | ?????????# #???#????????????????? | | ?????????##### #????????????????????? | | ?????????????# #????????????????????? | | ?????????????# #????????????????????? | | ?????????????# ####### ?????>? | | ?????????????# ??????? | | ?????????????# ####### #????????? | | ?????????????# #????????????????????? | | ?????????????# ###????????????????????? | | ?????????????# #??????????????????????? | | ?????????????# #??????????????????????? | | ?????????????# #??????????????????????? | | ?????????????# #??????????????????????? | | ?????????????# #??????????????????????? | +----------------------------------------------------+ Best States ------------- Heat Dissipation 25 Energy Generation 10 Energy Capacity 250 Matter Stores 300 Matter Capacity 300 Sight Range 16 Terrain Scan Range 14 Terrain Scan Density 10 Weapon Shielding 33 Evasion (%) 50 Item Schematics ----------------- None Robot Schematics ------------------ None Fabricated ------------ Nothing Alien Tech Used ----------------- None Achievements -------------- None Challenges ------------ None Game ------ Seed FactoryDynamicMonowheel Manual? 0 Play Time 00:10:22 Cumulative 1.3 hours Start 2025.03.22 @ 15:55:41 End 2025.03.22 @ 16:02:55 Sessions 1 Manual Loads 0 Difficulty Rogue Special Mode None Game No. 4 Rogue 4 Adventurer 0 Explorer 0 Win Type - Total 0 Types 0/0/0/0/0/0/0/0/0 Lore% 2 Gallery% 3 Achievement% 4 Wizard Run 0 Options --------- Layout 2 ASCII 0 Keyboard 1 Movement Arrows Keybinds 0 Fullscreen 2 Font 20/SmallcapsGlow Map View 54x51 Zoom Use 0% Tactical HUD 1 Map Filters NONE Filters NONE Steam 1 RUN: 6b4fa179-3b88-4929-9ad2-71a8bc9f1a8e